bitfinex-derivatives/quotes_BTCF0:USTF0_20241128
["timestamp","ask_amount","ask_price","bid_price","bid_amount"]
[1732800383874,0.57433,95286.0,95285.0,0.00613182]
[1732800386071,0.3608,95286.0,95285.0,0.00613182]
[1732800387860,0.52192,95286.0,95285.0,0.00613182]
[1732800391773,0.04284465,95293.0,95285.0,0.00613182]
[1732800391774,0.00010031,95293.0,95285.0,0.00613182]
[1732800391969,0.00010031,95293.0,95292.0,0.052446]
[1732800393269,0.00110031,95293.0,95292.0,0.052446]
[1732800395260,0.00110031,95293.0,95292.0,0.06287408]
[1732800396671,0.00110031,95293.0,95292.0,0.07271386]
[1732800397280,0.052444,95297.0,95296.0,0.052444]
[1732800397574,0.052444,95297.0,95296.0,0.06228378]
[1732800398265,0.3608,95306.0,95301.0,0.052441]
[1732800398465,0.052441,95302.0,95301.0,0.052441]
[1732800400175,0.053441,95302.0,95301.0,0.052441]
[1732800400869,0.059441,95302.0,95301.0,0.052441]
[1732800401078,0.007,95302.0,95301.0,0.052441]
[1732800404264,0.007,95302.0,95301.0,0.413241]
[1732800404468,0.007,95302.0,95301.0,0.42307981]
[1732800404877,0.00012518,95305.0,95304.0,0.05244]
[1732800405079,0.16245442,95319.0,95304.0,0.05244]
[1732800405080,0.00157442,95319.0,95304.0,0.00983881]
[1732800405269,0.00157442,95319.0,95318.0,0.052432]
[1732800405578,0.00037,95334.0,95318.0,0.052432]
[1732800405579,0.052425,95332.0,95331.0,0.052424]
[1732800406080,0.052425,95332.0,95326.0,0.413227]
[1732800406081,0.052427,95327.0,95326.0,0.413227]
[1732800406273,0.052427,95327.0,95326.0,0.42306283]
[1732800407372,0.052427,95327.0,95326.0,0.43342953]
[1732800407576,0.06153175,95332.0,95331.0,0.052425]
[1732800407871,0.00010675,95332.0,95331.0,0.052425]
[1732800408380,0.00010675,95332.0,95331.0,0.0622607]
[1732800409264,0.00010675,95332.0,95331.0,0.052425]
[1732800409468,0.00010675,95332.0,95331.0,0.0622605]
[1732800410282,0.00110675,95332.0,95331.0,0.0622605]
[1732800412369,0.00010675,95332.0,95331.0,0.0622605]
[1732800412678,0.00110675,95332.0,95331.0,0.0622605]
[1732800413182,0.00110675,95332.0,95331.0,0.052425]
[1732800413370,0.00110675,95332.0,95331.0,0.055425]
[1732800413875,0.00010675,95332.0,95331.0,0.055425]
[1732800414076,0.00210675,95332.0,95331.0,0.055425]
[1732800415081,0.00210675,95332.0,95331.0,0.053425]
[1732800417480,0.05453075,95332.0,95331.0,0.053425]
[1732800422590,0.05453075,95332.0,95331.0,0.001]
[1732800425185,0.83842675,95332.0,95306.0,0.052439]
[1732800425390,0.052439,95306.0,95305.0,0.052439]
[1732800425685,0.3608,95314.0,95296.0,0.052444]
[1732800425686,0.052437,95310.0,95296.0,0.052444]
[1732800426077,0.05244,95305.0,95297.0,0.00983886]
[1732800426273,0.05244,95304.0,95294.0,0.37116954]
[1732800426581,0.05244,95304.0,95303.0,0.05244]
[1732800427087,0.001,95306.0,95305.0,0.052439]
[1732800427288,0.001,95306.0,95295.0,0.052444]
[1732800427289,0.001,95305.0,95304.0,0.41324]
[1732800427475,0.001,95305.0,95304.0,0.42307843]
[1732800427678,0.52144,95327.0,95326.0,0.052428]
[1732800427679,0.16064,95327.0,95326.0,0.052428]
[1732800427880,0.16064,95327.0,95326.0,0.052426]
[1732800427881,0.052427,95327.0,95326.0,0.052426]
[1732800428083,0.05353175,95332.0,95331.0,0.052425]
[1732800428782,0.05353175,95332.0,95317.0,0.052432]
[1732800428783,0.052427,95328.0,95327.0,0.052427]
[1732800429487,0.052431,95321.0,95320.0,0.052431]
[1732800429785,0.052428,95326.0,95325.0,0.052428]
[1732800430180,0.052425,95331.0,95322.0,0.052429]
[1732800430380,0.00510675,95332.0,95322.0,0.052429]
[1732800430587,0.052428,95326.0,95323.0,0.052429]
[1732800430892,0.052428,95326.0,95324.0,0.052428]
[1732800431091,0.060428,95326.0,95325.0,0.053428]
[1732800433076,0.055428,95326.0,95325.0,0.052428]
[1732800433679,0.063428,95326.0,95325.0,0.053428]
[1732800446500,0.011,95326.0,95325.0,0.053428]
[1732800447895,0.063428,95326.0,95325.0,0.053428]
[1732800448092,0.063428,95326.0,95325.0,0.001]
[1732800448493,0.063428,95326.0,95325.0,0.053428]
[1732800453401,0.063428,95326.0,95325.0,0.001]
[1732800453910,0.22025125,95326.0,95325.0,0.001]
[1732800454104,0.063428,95326.0,95325.0,0.001]
[1732800454308,0.26247959,95326.0,95325.0,0.001]
[1732800454508,0.07410777,95326.0,95325.0,0.001]
[1732800455007,0.063428,95326.0,95325.0,0.001]
[1732800455909,0.22039602,95326.0,95325.0,0.001]
[1732800456300,0.063428,95326.0,95325.0,0.001]
[1732800461609,0.07401209,95326.0,95325.0,0.001]
[1732800461912,0.07401209,95326.0,95302.0,0.25160038]
[1732800461913,0.052435,95312.0,95302.0,0.25160038]
[1732800462215,0.052435,95312.0,95291.0,0.37740057]
[1732800462216,0.3608,95303.0,95301.0,0.25160038]
[1732800462409,0.0313,95302.0,95290.0,0.25160038]
[1732800462611,0.0313,95302.0,95286.0,0.04464175]
[1732800462612,0.3608,95292.0,95286.0,0.04464175]
[1732800462914,0.052449,95287.0,95286.0,0.04464175]
[1732800463806,0.052449,95287.0,95286.0,0.0015739]
[1732800464212,0.06322436,95287.0,95286.0,0.0015739]
[1732800464405,0.05245,95286.0,95285.0,0.00013182]
[1732800467015,0.05245,95286.0,95285.0,0.00313182]
[1732800467218,0.05345,95286.0,95285.0,0.00313182]
[1732800468508,0.052463,95261.0,95257.0,0.0333]
[1732800468709,0.052465,95259.0,95258.0,0.00984282]
[1732800468915,0.052465,95259.0,95257.0,0.0333]
[1732800469715,0.052465,95259.0,95257.0,0.0393]
[1732800470521,0.053465,95259.0,95257.0,0.0383]
[1732800470722,0.054465,95259.0,95257.0,0.0383]
[1732800471417,0.053465,95259.0,95257.0,0.0383]
[1732800471620,0.054465,95259.0,95257.0,0.0383]
[1732800474223,0.08018984,95258.0,95257.0,0.0383]
[1732800475119,0.054465,95259.0,95257.0,0.0383]
[1732800475420,0.214945,95259.0,95257.0,0.0383]
[1732800475614,0.214945,95259.0,95257.0,0.0363]
[1732800475615,0.002,95258.0,95257.0,0.0363]
[1732800476121,0.001,95258.0,95257.0,0.0363]
[1732800476325,0.213945,95259.0,95257.0,0.0333]
[1732800476620,0.214945,95259.0,95257.0,0.0363]
[1732800477123,0.213945,95259.0,95257.0,0.0333]
[1732800477318,0.001,95258.0,95257.0,0.0363]
[1732800477909,0.002,95258.0,95257.0,0.0363]
[1732800478714,0.002,95258.0,95257.0,0.088765]
[1732800478917,0.16048,95260.0,95257.0,0.088765]
[1732800478918,0.05246,95268.0,95267.0,0.05246]
[1732800479612,0.05246,95268.0,95267.0,0.05574083]
[1732800479826,0.05246,95268.0,95267.0,0.05246]
[1732800480018,0.05246,95268.0,95267.0,0.05574083]
[1732800481116,0.52184001,95274.0,95267.0,0.00328083]
[1732800481325,0.052458,95270.0,95269.0,0.052459]
[1732800481715,0.52188001,95274.0,95257.0,0.3971]
[1732800481716,0.36140001,95274.0,95260.0,0.18748104]
[1732800482027,0.212934,95279.0,95278.0,0.052454]
[1732800482213,0.052454,95279.0,95278.0,0.052454]
[1732800482615,0.16048,95294.0,95286.0,0.05245]
[1732800482813,0.16048,95304.0,95286.0,0.41325]
[1732800483019,0.052446,95292.0,95286.0,0.92869202]
[1732800483217,0.052449,95288.0,95286.0,0.42637098]
[1732800483414,0.052449,95288.0,95286.0,0.42637081]
[1732800483622,0.052449,95288.0,95286.0,0.06557081]
[1732800483919,0.052449,95288.0,95286.0,0.05245]
[1732800484108,0.052449,95288.0,95286.0,0.06557078]
[1732800484109,0.00312353,95287.0,95286.0,0.06557078]
[1732800484310,0.00312353,95287.0,95286.0,0.06229059]
[1732800484515,0.00312353,95287.0,95286.0,0.06557067]
[1732800485119,0.00712353,95287.0,95286.0,0.01312067]
[1732800485312,0.00712353,95287.0,95279.0,0.0322]
[1732800485519,0.052453,95280.0,95279.0,0.0322]
[1732800485719,0.052453,95280.0,95279.0,0.04532114]
[1732800485914,0.052453,95280.0,95279.0,0.05056962]
[1732800486319,0.16048,95286.0,95279.0,0.04294961]
[1732800486520,0.00612353,95287.0,95286.0,0.05245]
[1732800486825,0.00412353,95287.0,95286.0,0.07081875]
[1732800487012,0.052444,95296.0,95286.0,0.08256875]
[1732800487213,0.052444,95296.0,95287.0,0.01836875]
[1732800487519,0.052444,95296.0,95286.0,0.0642]
[1732800487520,0.052444,95296.0,95288.0,0.01836875]
[1732800487720,0.052444,95296.0,95289.0,0.01836875]
[1732800487919,0.052444,95296.0,95294.0,0.052445]
[1732800488118,0.00013034,95295.0,95294.0,0.052445]
[1732800489224,0.05257534,95295.0,95294.0,0.052445]
[1732800489425,0.05457534,95295.0,95294.0,0.052445]
[1732800491134,0.05757534,95295.0,95294.0,0.053445]
[1732800491326,0.05757534,95295.0,95294.0,0.06388009]
[1732800491729,0.05257534,95295.0,95294.0,0.06288009]
[1732800492034,0.05757534,95295.0,95294.0,0.06388009]
[1732800492223,0.06057534,95295.0,95294.0,0.06388009]
[1732800497133,0.00813034,95295.0,95294.0,0.06388009]
[1732800497528,0.19302,95308.0,95294.0,0.44304719]
[1732800497733,0.245457,95308.0,95307.0,0.052438]
[1732800498234,0.19302,95308.0,95307.0,0.052438]
[1732800498436,0.0329,95308.0,95307.0,0.052438]
[1732800498734,0.00307744,95308.0,95307.0,0.052438]
[1732800498933,0.01207744,95308.0,95307.0,0.052438]
[1732800499135,0.01207744,95308.0,95307.0,0.07080265]
[1732800499523,0.06751444,95308.0,95307.0,0.01936465]
[1732800499728,0.22763444,95308.0,95307.0,0.001]
[1732800499933,0.052438,95307.0,95296.0,0.052444]
[1732800500141,0.3608,95301.0,95279.0,0.0302]
[1732800500333,0.052446,95293.0,95282.0,0.02658167]
[1732800500523,0.052444,95297.0,95283.0,0.02658167]
[1732800500826,0.052444,95296.0,95284.0,0.02658167]
[1732800501026,0.052444,95296.0,95295.0,0.052445]
[1732800501727,0.052444,95296.0,95293.0,0.18783528]
[1732800501728,0.0306,95300.0,95299.0,0.052442]
[1732800502129,0.083042,95300.0,95299.0,0.052442]
[1732800503637,0.0336,95300.0,95299.0,0.052442]
[1732800504731,0.0406,95300.0,95299.0,0.053442]
[1732800504940,0.0406,95300.0,95299.0,0.24127728]
[1732800505440,0.0376,95300.0,95299.0,0.053442]
[1732800505641,0.0396,95300.0,95299.0,0.053442]
[1732800506934,0.0376,95300.0,95299.0,0.053442]
[1732800507137,0.0406,95300.0,95299.0,0.053442]
[1732800507337,0.003,95300.0,95299.0,0.052442]
[1732800507530,0.003,95300.0,95299.0,0.66368904]
[1732800507531,0.007,95300.0,95299.0,0.66368904]
[1732800507938,0.007,95300.0,95299.0,0.413242]
[1732800507939,0.003,95300.0,95299.0,0.413242]
[1732800508133,0.007,95300.0,95299.0,0.728042]
[1732800508333,0.007,95300.0,95299.0,1.15180997]
[1732800508629,0.052433,95317.0,95316.0,0.052432]
[1732800510536,0.057433,95317.0,95316.0,0.053432]
[1732800511238,0.066433,95317.0,95316.0,0.054432]
[1732800512548,0.066433,95317.0,95316.0,0.002]
[1732800515443,0.381193,95317.0,95306.0,0.18826522]
[1732800515642,0.381193,95317.0,95291.0,0.37604249]
[1732800515643,0.05244,95303.0,95302.0,0.18826522]
[1732800515849,0.05244,95303.0,95295.0,0.2510203]
[1732800515850,0.052443,95297.0,95296.0,0.18826522]
[1732800516143,0.3608,95297.0,95295.0,0.18826522]
[1732800516349,0.082944,95296.0,95295.0,0.18826522]
[1732800516650,0.0305,95296.0,95295.0,0.24071022]
[1732800516848,0.0305,95296.0,95295.0,0.052445]
[1732800517051,0.3608,95297.0,95295.0,0.18841993]
[1732800517252,0.3608,95297.0,95296.0,0.052444]
[1732800518047,0.3608,95297.0,95296.0,0.24086393]
[1732800518454,0.0305,95306.0,95295.0,0.19041993]
[1732800518640,0.36088676,95318.0,95301.0,0.2510203]
[1732800518641,0.212198,95308.0,95301.0,0.2510203]
[1732800518840,0.212198,95308.0,95307.0,0.18839595]
[1732800519053,0.212198,95308.0,95307.0,0.052438]
[1732800519247,0.15976,95308.0,95307.0,0.052438]
[1732800520259,0.16276,95308.0,95307.0,0.052438]
[1732800520548,0.215197,95308.0,95307.0,0.24084854]
[1732800521147,0.003,95308.0,95307.0,0.24084854]
[1732800521348,0.052435,95314.0,95313.0,0.052435]
[1732800522047,0.052435,95314.0,95313.0,0.06275179]
[1732800522454,0.15976,95315.0,95313.0,0.01031679]
[1732800522652,0.15976,95315.0,95314.0,0.052434]
[1732800523048,0.212194,95315.0,95314.0,0.052434]
[1732800524843,0.221194,95315.0,95314.0,0.053434]
[1732800525043,0.17276,95315.0,95314.0,0.053434]
[1732800525247,0.225194,95315.0,95314.0,0.053434]
[1732800526856,0.17276,95315.0,95314.0,0.053434]
[1732800527661,0.225194,95315.0,95314.0,0.053434]
[1732800528851,0.225194,95315.0,95314.0,0.001]
[1732800533460,0.225194,95315.0,95314.0,0.053434]
[1732800534069,0.225194,95315.0,95314.0,0.24183635]
[1732800535069,0.225194,95315.0,95314.0,0.053434]
[1732800535271,0.17276,95315.0,95314.0,0.053434]
[1732800536271,0.013,95315.0,95314.0,0.30463879]
[1732800536456,0.013,95315.0,95314.0,0.77542165]
[1732800536665,0.013,95315.0,95314.0,0.86530034]
[1732800536970,8.676e-05,95318.0,95317.0,0.052432]
[1732800537172,8.676e-05,95318.0,95317.0,0.46767665]
[1732800537363,8.676e-05,95318.0,95317.0,0.07890956]
[1732800538362,0.00108676,95318.0,95317.0,0.33017948]
[1732800538569,0.00108676,95318.0,95317.0,0.31681854]
[1732800540272,0.05243,95322.0,95317.0,0.26438654]
[1732800540473,0.05243,95322.0,95321.0,0.24085582]
[1732800542170,0.05243,95322.0,95314.0,0.11593129]
[1732800542171,0.052431,95320.0,95319.0,0.18840493]
[1732800542375,0.41623,95322.0,95314.0,9.729e-05]
[1732800542376,0.052431,95319.0,95314.0,9.729e-05]
[1732800542581,0.052434,95315.0,95314.0,9.729e-05]
[1732800542785,0.31476,95318.0,95298.0,0.25126992]
[1732800542969,0.31476,95318.0,95297.0,0.18840493]
[1732800542970,0.052442,95300.0,95297.0,0.052443]
[1732800543277,0.052445,95295.0,95294.0,0.18840493]
[1732800543476,0.212203,95299.0,95298.0,0.052443]
[1732800545574,0.15976,95299.0,95298.0,0.052443]
[1732800545874,0.16176,95299.0,95298.0,0.052443]
[1732800546275,0.16276,95299.0,95298.0,0.052443]
[1732800546480,0.003,95299.0,95298.0,0.052443]
[1732800547187,0.003,95299.0,95293.0,0.32625273]
[1732800547188,0.052445,95294.0,95293.0,0.06453207]
[1732800547482,0.003,95299.0,95293.0,0.08289889]
[1732800547682,0.052445,95294.0,95293.0,0.06453207]
[1732800547886,0.052445,95294.0,95293.0,0.01208707]
[1732800548071,0.052445,95294.0,95293.0,0.00157379]
[1732800550592,0.052445,95294.0,95293.0,0.25274691]
[1732800550784,0.052445,95294.0,95293.0,0.00157379]
[1732800551086,0.367245,95294.0,95293.0,0.00157379]
[1732800551287,0.368245,95294.0,95293.0,0.00157379]
[1732800551790,0.367245,95294.0,95293.0,0.00157379]
[1732800551992,0.368245,95294.0,95293.0,0.00157379]
[1732800552396,0.369245,95294.0,95293.0,0.00157379]
[1732800552997,0.052447,95291.0,95290.0,0.00010151]
[1732800553197,0.211927,95291.0,95290.0,0.00010151]
[1732800554191,0.3638,95294.0,95290.0,0.05254851]
[1732800554385,0.3638,95294.0,95293.0,0.052446]
[1732800554690,0.002,95294.0,95293.0,0.052446]
[1732800554891,0.052445,95295.0,95293.0,0.052446]
[1732800555093,0.052445,95295.0,95294.0,0.052445]
[1732800555794,0.52092,95299.0,95290.0,0.06324807]
[1732800555995,0.3608,95291.0,95290.0,0.00010151]
[1732800556496,0.413247,95291.0,95290.0,0.00010151]
[1732800556793,0.413247,95291.0,95290.0,0.05254851]
[1732800556794,0.3608,95291.0,95290.0,0.05254851]
[1732800556991,0.001,95295.0,95290.0,0.05254851]
[1732800556992,0.001,95295.0,95294.0,0.052445]
[1732800557798,0.052443,95298.0,95296.0,0.052444]
[1732800558099,0.001,95291.0,95290.0,0.05254851]
[1732800558293,0.001,95291.0,95290.0,0.07091669]
[1732800558691,0.004,95295.0,95294.0,0.052445]
[1732800559291,0.003,95295.0,95294.0,0.052445]
[1732800560302,0.052444,95297.0,95294.0,0.1883879]
[1732800560496,0.052444,95297.0,95290.0,0.00010151]
[1732800560497,0.052444,95297.0,95296.0,0.052444]
[1732800561590,0.056444,95297.0,95296.0,0.052444]
[1732800561790,0.058444,95297.0,95296.0,0.052444]
[1732800563698,0.006,95297.0,95296.0,0.052444]
[1732800567903,0.15948,95309.0,95297.0,0.052443]
[1732800568204,0.211918,95309.0,95308.0,0.052437]
[1732800569392,0.213918,95309.0,95308.0,0.24063445]
[1732800570193,0.213918,95309.0,95308.0,0.052437]
[1732800570403,0.052439,95305.0,95304.0,0.25092994]
[1732800570699,0.05244,95303.0,95302.0,0.25092994]
[1732800570896,0.031,95304.0,95302.0,0.25111935]
[1732800571398,0.031,95304.0,95301.0,0.052441]
[1732800571604,0.052441,95302.0,95301.0,0.052441]
[1732800573406,0.053441,95302.0,95301.0,0.052441]
[1732800573910,0.053441,95302.0,95301.0,0.06069017]
[1732800574806,0.053441,95302.0,95301.0,0.052441]
[1732800575404,0.055441,95302.0,95301.0,0.052441]
[1732800576607,0.055441,95302.0,95301.0,0.30379481]
[1732800576798,0.055441,95302.0,95301.0,0.052441]
[1732800577108,0.003,95302.0,95299.0,0.25135381]
[1732800577306,0.052443,95297.0,95296.0,0.25135488]
[1732800577512,0.15948,95297.0,95295.0,0.18852908]
[1732800577818,0.3608,95300.0,95299.0,0.052442]
[1732800578204,0.3608,95300.0,95299.0,0.24096947]
[1732800578795,0.64740256,95310.0,95295.0,0.25135488]
[1732800578796,0.052439,95306.0,95295.0,0.25135488]
[1732800579004,0.052439,95306.0,95290.0,0.12694406]
[1732800579005,0.052439,95305.0,95304.0,0.052439]
[1732800579309,0.052439,95305.0,95304.0,0.24095531]
[1732800580312,0.052439,95305.0,95304.0,0.052439]
[1732800580608,0.05244,95304.0,95303.0,0.18851631]
[1732800581002,0.05244,95304.0,95303.0,0.24095631]
[1732800581204,0.05244,95304.0,95303.0,0.05244]
[1732800582104,0.05544,95304.0,95303.0,0.05244]
[1732800582306,0.004,95304.0,95303.0,0.05244]
[1732800582616,0.05644,95304.0,95303.0,0.05244]
[1732800582821,0.004,95304.0,95303.0,0.05244]
[1732800584599,0.05644,95304.0,95303.0,0.06277038]
[1732800589334,0.05644,95304.0,95303.0,0.07099951]
[1732800589948,0.05644,95304.0,95303.0,0.07099977]
[1732800591743,0.05644,95304.0,95303.0,0.38516543]
[1732800593245,0.05644,95304.0,95303.0,0.81817804]
[1732800594035,0.05644,95304.0,95303.0,0.38516543]
[1732800594214,0.05644,95304.0,95303.0,0.49573246]
[1732800594519,0.05644,95304.0,95303.0,0.49576781]
[1732800595410,0.05644,95304.0,95303.0,0.48543743]
[1732800596725,0.05644,95304.0,95303.0,0.49360375]
[1732800596914,0.05644,95304.0,95303.0,0.48543743]
[1732800597519,0.05644,95304.0,95303.0,0.05244]
[1732800597921,0.05644,95304.0,95303.0,0.06060682]
[1732800598127,0.05644,95304.0,95303.0,0.06057833]
[1732800599040,0.052432,95319.0,95317.0,0.052432]
[1732800600450,0.052429,95324.0,95323.0,0.052429]
[1732800601134,0.052432,95318.0,95317.0,0.01051359]
[1732800601324,0.3648,95318.0,95314.0,0.31452697]
[1732800601513,0.3648,95318.0,95304.0,0.0333]
[1732800601514,0.052435,95313.0,95312.0,0.052435]
[1732800601914,0.0301,95316.0,95308.0,0.31452697]
[1732800602119,0.0301,95316.0,95310.0,0.25157785]
[1732800602318,0.0301,95316.0,95313.0,0.18868724]
[1732800602526,0.0301,95316.0,95298.0,0.37919188]
[1732800602527,0.052437,95309.0,95308.0,0.25157785]
[1732800602725,0.8016,95309.0,95298.0,0.00157372]
[1732800602921,0.413242,95299.0,95298.0,0.00157372]
[1732800603126,0.052446,95293.0,95291.0,0.31452697]
[1732800603417,0.052447,95291.0,95290.0,0.31462848]
[1732800603616,0.413247,95291.0,95290.0,0.00994129]
[1732800603820,0.413247,95291.0,95290.0,0.00828161]
[1732800604024,0.413247,95291.0,95290.0,0.00010151]
[1732800604526,0.444847,95291.0,95290.0,0.00010151]
[1732800605024,0.45547494,95291.0,95290.0,0.00310151]
[1732800605329,0.413247,95291.0,95290.0,0.00310151]
[1732800605928,0.413247,95291.0,95290.0,0.19081705]
[1732800606121,0.3608,95291.0,95290.0,0.19381705]
[1732800606434,0.01031936,95296.0,95293.0,0.052445]
[1732800606616,0.1592,95297.0,95293.0,0.052445]
[1732800606919,0.1592,95297.0,95290.0,0.31962848]
[1732800606920,0.052446,95293.0,95290.0,0.00510151]
[1732800607121,0.052447,95292.0,95290.0,0.00510151]
[1732800607528,0.3608,95291.0,95290.0,0.00310151]
[1732800608032,0.3608,95291.0,95290.0,0.05554851]
[1732800608224,0.211644,95297.0,95290.0,0.00310151]
[1732800608426,0.211644,95297.0,95291.0,0.34722697]
[1732800608427,0.15892,95297.0,95291.0,0.34722697]
[1732800608623,0.3608,95299.0,95298.0,0.052443]
[1732800608820,0.3608,95299.0,95298.0,0.79355856]
[1732800609331,0.3608,95299.0,95298.0,0.80204253]
[1732800609626,0.3608,95299.0,95298.0,0.37546875]
[1732800610221,0.3608,95299.0,95298.0,0.38627374]
[1732800611528,0.3608,95299.0,95298.0,0.37777496]
[1732800611726,0.3618,95299.0,95298.0,0.38614198]
[1732800612127,0.3618,95299.0,95298.0,0.37777496]
[1732800612324,0.3618,95299.0,95298.0,0.38612043]
[1732800612522,0.3618,95299.0,95298.0,0.06324799]
[1732800612723,0.3618,95299.0,95298.0,0.07159344]
[1732800614931,0.3618,95299.0,95298.0,0.08538373]
[1732800615628,0.02099166,95317.0,95298.0,0.08538373]
[1732800615629,0.052433,95317.0,95316.0,0.052431]
[1732800615833,0.36237418,95331.0,95320.0,0.052431]
[1732800615834,0.15892,95322.0,95320.0,0.052431]
[1732800616022,0.15892,95322.0,95321.0,0.00860533]
[1732800616623,0.15892,95322.0,95321.0,0.00860248]
[1732800616835,0.36237418,95331.0,95324.0,0.052429]
[1732800617125,0.36237418,95331.0,95324.0,0.06103148]
[1732800617531,0.36237418,95331.0,95324.0,0.07939299]
[1732800618123,0.00307481,95325.0,95324.0,0.07939299]
[1732800618835,0.00407481,95325.0,95324.0,0.07086801]
[1732800619032,0.00407481,95325.0,95324.0,0.07611411]
[1732800619226,0.00407481,95325.0,95324.0,0.07939292]
[1732800619739,0.36237418,95331.0,95330.0,0.052425]
[1732800620734,0.36250328,95331.0,95330.0,0.052425]
[1732800621635,0.00470328,95331.0,95330.0,0.07078502]
[1732800622035,0.0031291,95331.0,95330.0,0.38546502]
[1732800622333,0.052416,95348.0,95347.0,0.052416]
[1732800622732,0.00042,95350.0,95349.0,0.052415]
[1732800623033,0.052834,95350.0,95349.0,0.052415]
[1732800623232,0.05291031,95350.0,95349.0,0.052415]
[1732800623938,0.05242,95339.0,95338.0,0.18791088]
[1732800624128,0.3608,95339.0,95330.0,0.18781404]
[1732800624328,0.3608,95339.0,95322.0,0.0322]
[1732800624329,0.052428,95326.0,95325.0,0.18781404]
[1732800624533,0.3608,95331.0,95322.0,0.052429]
[1732800624534,0.052429,95323.0,95322.0,0.052429]
[1732800624733,0.052429,95323.0,95322.0,0.07078972]
[1732800624923,0.211307,95328.0,95313.0,0.18781404]
[1732800625128,0.211307,95328.0,95326.0,0.052427]
[1732800625334,0.211307,95328.0,95327.0,0.052427]
[1732800626334,0.15888,95328.0,95321.0,0.05243]
[1732800626636,0.05243,95322.0,95321.0,0.05243]
[1732800627026,0.15888,95328.0,95311.0,0.0628]
[1732800627027,0.15888,95328.0,95322.0,0.002]
[1732800627330,0.413229,95323.0,95322.0,0.002]
[1732800627530,0.3608,95323.0,95322.0,0.05443]
[1732800627729,0.3608,95323.0,95322.0,0.05243]
[1732800627936,0.12692589,95360.0,95322.0,0.05243]
[1732800627937,0.15888,95340.0,95339.0,0.05242]
[1732800628543,0.3608,95346.0,95333.0,0.3608]
[1732800628747,0.052418,95344.0,95343.0,0.052417]
[1732800630142,0.052418,95344.0,95343.0,0.053417]
[1732800631334,0.055418,95344.0,95343.0,0.053417]
[1732800633135,0.055418,95344.0,95343.0,0.052417]
[1732800633447,0.052418,95344.0,95343.0,0.052417]
[1732800633740,0.054418,95344.0,95343.0,0.052417]
[1732800634050,0.002,95344.0,95343.0,0.052417]
[1732800634340,0.3608,95346.0,95345.0,0.052417]
[1732800636744,0.3618,95346.0,95345.0,0.052417]
[1732800638046,0.3618,95346.0,95345.0,0.06312575]
[1732800640642,0.414217,95346.0,95345.0,0.052417]
[1732800640834,0.3618,95346.0,95345.0,0.052417]
[1732800641939,0.052419,95341.0,95340.0,0.18781404]
[1732800642146,0.052419,95341.0,95333.0,0.3608]
[1732800642147,0.3618,95346.0,95339.0,0.24023404]
[1732800642341,0.3618,95346.0,95333.0,0.052423]
[1732800642342,0.052419,95341.0,95333.0,0.052423]
[1732800642640,0.3618,95346.0,95331.0,0.18805971]
[1732800642641,0.3608,95337.0,95331.0,0.18805971]
[1732800642842,0.3608,95337.0,95321.0,0.67487514]
[1732800642843,0.3608,95337.0,95328.0,0.18805971]
[1732800643051,0.052426,95329.0,95328.0,0.18805971]
[1732800643244,0.15856,95329.0,95326.0,0.18805971]
[1732800643449,0.15856,95329.0,95328.0,0.18805971]
[1732800643450,0.210986,95329.0,95328.0,0.18805971]
[1732800643761,0.210986,95329.0,95327.0,0.24048571]
[1732800643762,0.052426,95328.0,95327.0,0.24048571]
[1732800643944,0.052426,95328.0,95327.0,0.052426]
[1732800644744,0.05243,95322.0,95321.0,0.3608]
[1732800644947,0.52036,95329.0,95321.0,0.02143586]
[1732800645249,0.052428,95327.0,95326.0,0.052427]
[1732800645651,0.052429,95323.0,95321.0,0.05243]
[1732800645846,0.52036,95329.0,95326.0,0.052427]
[1732800645847,0.052427,95328.0,95326.0,0.052427]
[1732800646046,0.052427,95327.0,95326.0,0.052427]
[1732800646646,0.001,95328.0,95321.0,0.31407514]
[1732800646844,0.001,95328.0,95322.0,0.00983664]
[1732800647144,0.001,95328.0,95327.0,0.052427]
[1732800648360,0.51936,95329.0,95327.0,0.052427]
[1732800648549,0.052426,95328.0,95327.0,0.052427]
[1732800649742,0.052426,95328.0,95316.0,0.42018111]
[1732800649743,0.51996001,95329.0,95319.0,0.31407514]
[1732800649944,0.052431,95323.0,95322.0,0.052429]
[1732800650142,0.052431,95323.0,95322.0,0.0622656]
[1732800650555,0.212027,95328.0,95325.0,0.052428]
[1732800650756,0.052427,95327.0,95325.0,0.052428]
[1732800650963,0.052427,95327.0,95326.0,0.052428]
[1732800651755,0.1586,95328.0,95319.0,0.001]
[1732800651948,0.1586,95328.0,95324.0,0.18836567]
[1732800651949,0.052428,95325.0,95324.0,0.18836567]
[1732800653355,0.0628,95326.0,95323.0,0.18836567]
[1732800653655,0.052429,95324.0,95323.0,0.18836567]
[1732800654257,0.052429,95323.0,95322.0,0.18836567]
[1732800654447,0.0628,95326.0,95312.0,0.36152]
[1732800654651,0.052429,95323.0,95322.0,0.18834251]
[1732800654851,0.0628,95326.0,95322.0,0.18834146]
[1732800655048,0.052429,95323.0,95322.0,0.18834146]
[1732800655859,0.0628,95326.0,95319.0,0.18934146]
[1732800655860,0.05243,95321.0,95319.0,0.18934146]
[1732800656056,0.052431,95320.0,95319.0,0.18834146]
[1732800656264,0.052431,95320.0,95319.0,0.18834103]
[1732800656561,0.052431,95320.0,95319.0,0.18833181]
[1732800657357,0.052431,95320.0,95319.0,0.18933181]
[1732800657558,0.052431,95320.0,95319.0,0.19033181]
[1732800657864,0.413231,95320.0,95319.0,0.002]
[1732800658250,0.727951,95320.0,95319.0,0.001]
[1732800658456,0.97594401,95320.0,95311.0,0.18835711]
[1732800658767,0.052436,95311.0,95310.0,0.00157353]
[1732800658958,0.651756,95311.0,95310.0,0.00157353]
[1732800659158,0.651756,95311.0,95301.0,0.18830104]
[1732800659159,0.052441,95302.0,95301.0,0.18830104]
[1732800659464,0.052443,95298.0,95297.0,0.18830104]